[Event "Titled Tuesday Blitz December 20 Early 2022"]
[White "Imperial, Genghis"]
[Black "rasmussvane"]
[WhiteFideId "5230403"]
[WhiteElo "1812"]
[BlackElo "2949"]
[Result "0-1"]
[Round "10"]
[TimeControl "180+2"]
[Date "2022.12.20"]
[WhiteClock "0:00:06"]
[BlackClock "0:00:19"]

1. e4 {[%clk 0:02:48]}  c6 {[%clk 0:03:00]} 2. d4 {[%clk 0:02:45]}  d5 {[%clk 0:03:00]} 3. e5 {[%clk 0:02:41]}  Bf5 {[%clk 0:03:00]} 4. h4 {[%clk 0:02:41]}  h5 {[%clk 0:03:00]} 5. Bd3 {[%clk 0:02:42]}  Bxd3 {[%clk 0:02:59]} 6. Qxd3 {[%clk 0:02:42]}  Qa5+ {[%clk 0:03:00]} 7. Nd2 {[%clk 0:02:42]}  e6 {[%clk 0:02:59]} 8. Nf3 {[%clk 0:02:42]}  Nh6 {[%clk 0:02:59]} 9. O-O {[%clk 0:02:40]}  Nf5 {[%clk 0:02:58]} 10. a4 {[%clk 0:02:41]}  Nd7 {[%clk 0:02:40]} 11. Nb3 {[%clk 0:02:27]}  Qa6 {[%clk 0:02:40]} 12. Qd1 {[%clk 0:02:15]}  Be7 {[%clk 0:02:37]} 13. g3 {[%clk 0:02:14]}  Rc8 {[%clk 0:02:35]} 14. c3 {[%clk 0:02:15]}  c5 {[%clk 0:02:17]} 15. dxc5 {[%clk 0:02:14]}  Nxc5 {[%clk 0:02:18]} 16. Nbd4 {[%clk 0:02:11]}  Nxd4 {[%clk 0:02:18]} 17. Nxd4 {[%clk 0:02:06]}  Qd3 {[%clk 0:02:14]} 18. Kg2 {[%clk 0:01:53]}  Qe4+ {[%clk 0:01:53]} 19. f3 {[%clk 0:01:24]}  Qxe5 {[%clk 0:01:40]} 20. Bf4 {[%clk 0:01:23]}  Qf6 {[%clk 0:01:40]} 21. Bg5 {[%clk 0:01:22]}  Qg6 {[%clk 0:01:40]} 22. Bxe7 {[%clk 0:01:23]}  Kxe7 {[%clk 0:01:41]} 23. Re1 {[%clk 0:01:18]}  Rhe8 {[%clk 0:01:33]} 24. Nb5 {[%clk 0:01:18]}  a6 {[%clk 0:01:27]} 25. Na7 {[%clk 0:01:14]}  Rc7 {[%clk 0:01:20]} 26. Qxd5 {[%clk 0:01:10]}  Rd8 {[%clk 0:01:09]} 27. Qe5 {[%clk 0:01:05]}  Rdd7 {[%clk 0:00:59]} 28. Re2 {[%clk 0:00:45]}  b6 {[%clk 0:00:55]} 29. a5 {[%clk 0:00:43]}  Nd3 {[%clk 0:00:49]} 30. Qe3 {[%clk 0:00:39]}  Rxa7 {[%clk 0:00:49]} 31. axb6 {[%clk 0:00:39]}  Rab7 {[%clk 0:00:48]} 32. Rxa6 {[%clk 0:00:36]}  Qf5 {[%clk 0:00:48]} 33. b4 {[%clk 0:00:29]}  Qb5 {[%clk 0:00:46]} 34. Ra5 {[%clk 0:00:29]}  Qxb6 {[%clk 0:00:39]} 35. Qg5+ {[%clk 0:00:30]}  Kf8 {[%clk 0:00:37]} 36. Qxh5 {[%clk 0:00:21]}  Kg8 {[%clk 0:00:38]} 37. Rg5 {[%clk 0:00:19]}  Qd8 {[%clk 0:00:19]} 38. Qh6 {[%clk 0:00:18]}  f6 {[%clk 0:00:19]} 39. Rg4 {[%clk 0:00:09]}  Ne5 {[%clk 0:00:19]} 40. Rxe5 {[%clk 0:00:04]}  fxe5 {[%clk 0:00:20]} 41. Qxe6+ {[%clk 0:00:05]}  Rf7 {[%clk 0:00:21]} 42. Rc4 {[%clk 0:00:05]}  Qd2+ {[%clk 0:00:17]} 43. Kh3 {[%clk 0:00:06]}  Qd7 {[%clk 0:00:17]} 44. Rc8+ {[%clk 0:00:03]}  Kh7 {[%clk 0:00:18]} 45. Re8 {[%clk 0:00:04]}  Qxe6+ {[%clk 0:00:17]} 46. Rxe6 {[%clk 0:00:05]}  Rxf3 {[%clk 0:00:18]} 47. Rxe5 {[%clk 0:00:05]}  Rxc3 {[%clk 0:00:18]} 48. Rh5+ {[%clk 0:00:06]}  Kg8 {[%clk 0:00:18]} 49. b5 {[%clk 0:00:06]}  Rb3 {[%clk 0:00:19]} 0-1


[Site "https://www.chess.com"]

[Event "Titled Tuesday Blitz December 20 Early 2022"]
[White "Ivan11Martic"]
[Black "Garcia Brion, Eduardo"]
[BlackFideId "2223864"]
[WhiteElo "2528"]
[BlackElo "2175"]
[Result "1/2-1/2"]
[Round "10"]
[TimeControl "180+2"]
[Date "2022.12.20"]
[WhiteClock "0:01:08"]
[BlackClock "0:00:04"]

1. d4 {[%clk 0:03:00]}  Nf6 {[%clk 0:02:56]} 2. Nf3 {[%clk 0:02:58]}  e6 {[%clk 0:02:56]} 3. c4 {[%clk 0:02:58]}  Bb4+ {[%clk 0:02:55]} 4. Nbd2 {[%clk 0:02:58]}  d5 {[%clk 0:02:30]} 5. e3 {[%clk 0:02:54]}  O-O {[%clk 0:02:29]} 6. Bd3 {[%clk 0:02:54]}  b6 {[%clk 0:02:28]} 7. O-O {[%clk 0:02:54]}  Bb7 {[%clk 0:02:28]} 8. a3 {[%clk 0:02:54]}  Bd6 {[%clk 0:02:27]} 9. b4 {[%clk 0:02:54]}  c6 {[%clk 0:02:26]} 10. Bb2 {[%clk 0:02:49]}  Nbd7 {[%clk 0:02:24]} 11. Rc1 {[%clk 0:02:47]}  Qe7 {[%clk 0:02:21]} 12. e4 {[%clk 0:02:46]}  dxe4 {[%clk 0:02:20]} 13. Nxe4 {[%clk 0:02:46]}  Nxe4 {[%clk 0:02:18]} 14. Bxe4 {[%clk 0:02:47]}  Nf6 {[%clk 0:02:19]} 15. Bb1 {[%clk 0:02:47]}  c5 {[%clk 0:02:17]} 16. dxc5 {[%clk 0:02:45]}  bxc5 {[%clk 0:02:18]} 17. b5 {[%clk 0:02:45]}  e5 {[%clk 0:02:02]} 18. Qe2 {[%clk 0:02:44]}  e4 {[%clk 0:01:59]} 19. Nd2 {[%clk 0:02:40]}  Rfe8 {[%clk 0:01:51]} 20. Rfe1 {[%clk 0:02:38]}  Qc7 {[%clk 0:01:39]} 21. Nf1 {[%clk 0:02:36]}  Be5 {[%clk 0:01:18]} 22. Rcd1 {[%clk 0:02:31]}  Rad8 {[%clk 0:01:15]} 23. a4 {[%clk 0:02:30]}  Bd4 {[%clk 0:01:12]} 24. Ne3 {[%clk 0:02:26]}  g6 {[%clk 0:01:05]} 25. h3 {[%clk 0:02:20]}  h5 {[%clk 0:01:04]} 26. Rd2 {[%clk 0:02:17]}  Kg7 {[%clk 0:01:00]} 27. Red1 {[%clk 0:02:15]}  Bxb2 {[%clk 0:00:31]} 28. Rxb2 {[%clk 0:02:16]}  Rd4 {[%clk 0:00:30]} 29. Rbd2 {[%clk 0:02:14]}  Red8 {[%clk 0:00:29]} 30. Nc2 {[%clk 0:02:14]}  Rd3 {[%clk 0:00:25]} 31. Ne3 {[%clk 0:02:04]}  Rxd2 {[%clk 0:00:11]} 32. Rxd2 {[%clk 0:02:05]}  Rd4 {[%clk 0:00:11]} 33. Nc2 {[%clk 0:02:03]}  Rxd2 {[%clk 0:00:10]} 34. Qxd2 {[%clk 0:02:04]}  Qe5 {[%clk 0:00:10]} 35. Ne3 {[%clk 0:01:56]}  Qd4 {[%clk 0:00:10]} 36. Qc1 {[%clk 0:01:56]}  Nd7 {[%clk 0:00:08]} 37. Kh1 {[%clk 0:01:53]}  f5 {[%clk 0:00:08]} 38. Ba2 {[%clk 0:01:48]}  f4 {[%clk 0:00:08]} 39. Nc2 {[%clk 0:01:48]}  Qxf2 {[%clk 0:00:07]} 40. Qd1 {[%clk 0:01:41]}  Nf6 {[%clk 0:00:05]} 41. Bb1 {[%clk 0:01:34]}  e3 {[%clk 0:00:05]} 42. Ne1 {[%clk 0:01:35]}  e2 {[%clk 0:00:03]} 43. Qd2 {[%clk 0:01:34]}  Ne4 {[%clk 0:00:01]} 44. Bxe4 {[%clk 0:01:29]}  Bxe4 {[%clk 0:00:02]} 45. a5 {[%clk 0:01:29]}  Qf1+ {[%clk 0:00:03]} 46. Kh2 {[%clk 0:01:29]}  f3 {[%clk 0:00:03]} 47. Qd7+ {[%clk 0:01:22]}  Kh6 {[%clk 0:00:03]} 48. Qd2+ {[%clk 0:01:21]}  Kg7 {[%clk 0:00:04]} 49. gxf3 {[%clk 0:01:20]}  Qf2+ {[%clk 0:00:03]} 50. Ng2 {[%clk 0:01:18]}  Bxf3 {[%clk 0:00:04]} 51. Qd7+ {[%clk 0:01:18]}  Kf6 {[%clk 0:00:04]} 52. Qd8+ {[%clk 0:01:17]}  Ke5 {[%clk 0:00:03]} 53. Qg5+ {[%clk 0:01:12]}  Kd4 {[%clk 0:00:03]} 54. Qd2+ {[%clk 0:01:11]}  Kxc4 {[%clk 0:00:03]} 55. Qc2+ {[%clk 0:01:10]}  Kxb5 {[%clk 0:00:04]} 56. Qb3+ {[%clk 0:01:11]}  Kxa5 {[%clk 0:00:04]} 57. Qa3+ {[%clk 0:01:09]}  Kb5 {[%clk 0:00:05]} 58. Qb3+ {[%clk 0:01:10]}  Kc6 {[%clk 0:00:05]} 59. Qe6+ {[%clk 0:01:10]}  Kb5 {[%clk 0:00:06]} 60. Qb3+ {[%clk 0:01:10]}  Ka5 {[%clk 0:00:06]} 61. Qa3+ {[%clk 0:01:10]}  Kb6 {[%clk 0:00:07]} 62. Qb3+ {[%clk 0:01:10]}  Kc7 {[%clk 0:00:07]} 63. Qf7+ {[%clk 0:01:10]}  Kb6 {[%clk 0:00:06]} 64. Qb3+ {[%clk 0:01:08]}  Ka6 {[%clk 0:00:04]} 65. Qa4+ {[%clk 0:01:08]}  Kb6 {[%clk 0:00:04]} 66. Qb3+ {[%clk 0:01:08]} 1/2-1/2


[Site "https://www.chess.com"]

[Event "Titled Tuesday Blitz December 20 Early 2022"]
[White "JaloliddinIlkhomi"]
[Black "BENO_CHESS"]
[WhiteElo "2533"]
[BlackElo "2706"]
[Result "0-1"]
[Round "10"]
[TimeControl "180+2"]
[Date "2022.12.20"]
[WhiteClock "0:00:11"]
[BlackClock "0:01:00"]

1. d4 {[%clk 0:03:00]}  d6 {[%clk 0:02:46]} 2. Nf3 {[%clk 0:03:00]}  Nd7 {[%clk 0:02:46]} 3. g3 {[%clk 0:03:00]}  g6 {[%clk 0:02:46]} 4. Bg2 {[%clk 0:03:00]}  Bg7 {[%clk 0:02:47]} 5. O-O {[%clk 0:02:58]}  Ngf6 {[%clk 0:02:47]} 6. b3 {[%clk 0:02:58]}  O-O {[%clk 0:02:46]} 7. Bb2 {[%clk 0:02:59]}  a5 {[%clk 0:02:41]} 8. Nbd2 {[%clk 0:02:55]}  a4 {[%clk 0:02:41]} 9. c4 {[%clk 0:02:55]}  c6 {[%clk 0:02:38]} 10. e4 {[%clk 0:02:53]}  Qa5 {[%clk 0:02:32]} 11. Qc2 {[%clk 0:02:49]}  Qh5 {[%clk 0:02:27]} 12. Rae1 {[%clk 0:02:39]}  e5 {[%clk 0:02:25]} 13. dxe5 {[%clk 0:02:38]}  Nxe5 {[%clk 0:02:22]} 14. Nxe5 {[%clk 0:02:38]}  dxe5 {[%clk 0:02:22]} 15. f4 {[%clk 0:02:12]}  axb3 {[%clk 0:02:06]} 16. axb3 {[%clk 0:02:01]}  exf4 {[%clk 0:02:05]} 17. Rxf4 {[%clk 0:01:47]}  Ng4 {[%clk 0:02:04]} 18. h3 {[%clk 0:01:33]}  Ra2 {[%clk 0:01:47]} 19. hxg4 {[%clk 0:01:26]}  Qc5+ {[%clk 0:01:47]} 20. Kh2 {[%clk 0:01:18]}  Rxb2 {[%clk 0:01:47]} 21. Qd3 {[%clk 0:01:17]}  Be5 {[%clk 0:01:39]} 22. Rff1 {[%clk 0:00:50]}  Bxg4 {[%clk 0:01:30]} 23. Nf3 {[%clk 0:00:50]}  Bxf3 {[%clk 0:01:23]} 24. Rxf3 {[%clk 0:00:51]}  Qe7 {[%clk 0:01:23]} 25. Re2 {[%clk 0:00:44]}  Rd8 {[%clk 0:01:21]} 26. Qe3 {[%clk 0:00:40]}  Qh4+ {[%clk 0:01:16]} 27. Bh3 {[%clk 0:00:39]}  Rxe2+ {[%clk 0:01:06]} 28. Qxe2 {[%clk 0:00:39]}  Qg5 {[%clk 0:01:05]} 29. Qg2 {[%clk 0:00:30]}  Rd2 {[%clk 0:01:05]} 30. Rf2 {[%clk 0:00:31]}  Qxg3+ {[%clk 0:01:04]} 31. Kg1 {[%clk 0:00:11]}  Rxf2 {[%clk 0:01:00]} 0-1


[Site "https://www.chess.com"]

[Event "Titled Tuesday Blitz December 20 Early 2022"]
[White "Jasko, Pavel"]
[Black "Sokolov, Ivan"]
[WhiteFideId "980463"]
[BlackFideId "14400030"]
[WhiteElo "1693"]
[BlackElo "2590"]
[Result "0-1"]
[Round "10"]
[TimeControl "180+2"]
[Date "2022.12.20"]
[WhiteClock "0:00:08"]
[BlackClock "0:00:05"]

1. e4 {[%clk 0:03:00]}  d6 {[%clk 0:02:59]} 2. d4 {[%clk 0:02:59]}  Nf6 {[%clk 0:03:00]} 3. Nc3 {[%clk 0:02:59]}  g6 {[%clk 0:02:59]} 4. Bf4 {[%clk 0:03:00]}  Bg7 {[%clk 0:02:59]} 5. Qd2 {[%clk 0:03:01]}  a6 {[%clk 0:02:59]} 6. O-O-O {[%clk 0:03:00]}  b5 {[%clk 0:02:58]} 7. f3 {[%clk 0:03:01]}  Bb7 {[%clk 0:02:58]} 8. Nge2 {[%clk 0:03:01]}  Nbd7 {[%clk 0:02:58]} 9. Kb1 {[%clk 0:02:59]}  Rc8 {[%clk 0:02:53]} 10. Nc1 {[%clk 0:03:00]}  c5 {[%clk 0:02:53]} 11. d5 {[%clk 0:02:56]}  Nb6 {[%clk 0:02:44]} 12. Bh6 {[%clk 0:02:54]}  Bxh6 {[%clk 0:02:39]} 13. Qxh6 {[%clk 0:02:55]}  b4 {[%clk 0:02:39]} 14. N3e2 {[%clk 0:02:54]}  Qd7 {[%clk 0:02:32]} 15. e5 {[%clk 0:02:47]}  dxe5 {[%clk 0:02:30]} 16. d6 {[%clk 0:02:47]}  Rc6 {[%clk 0:02:10]} 17. f4 {[%clk 0:02:37]}  e4 {[%clk 0:02:03]} 18. Ng3 {[%clk 0:02:29]}  Rxd6 {[%clk 0:01:38]} 19. Be2 {[%clk 0:02:29]}  Nbd5 {[%clk 0:01:29]} 20. Nb3 {[%clk 0:02:26]}  Qc7 {[%clk 0:01:20]} 21. f5 {[%clk 0:02:20]}  c4 {[%clk 0:00:58]} 22. Nd4 {[%clk 0:02:19]}  c3 {[%clk 0:00:58]} 23. b3 {[%clk 0:01:36]}  Rg8 {[%clk 0:00:54]} 24. fxg6 {[%clk 0:01:34]}  hxg6 {[%clk 0:00:54]} 25. Rhf1 {[%clk 0:01:30]}  Qa5 {[%clk 0:00:53]} 26. Qc1 {[%clk 0:01:28]}  Rh8 {[%clk 0:00:37]} 27. h3 {[%clk 0:01:28]}  Qa3 {[%clk 0:00:25]} 28. Qxa3 {[%clk 0:01:22]}  bxa3 {[%clk 0:00:26]} 29. Bc4 {[%clk 0:01:22]}  Nb4 {[%clk 0:00:26]} 30. Nge2 {[%clk 0:01:21]}  e3 {[%clk 0:00:26]} 31. Nf3 {[%clk 0:01:07]}  Rxd1+ {[%clk 0:00:23]} 32. Rxd1 {[%clk 0:01:08]}  Ne4 {[%clk 0:00:21]} 33. Ned4 {[%clk 0:00:37]}  Nd2+ {[%clk 0:00:20]} 34. Ka1 {[%clk 0:00:38]}  Bxf3 {[%clk 0:00:17]} 35. gxf3 {[%clk 0:00:38]}  e5 {[%clk 0:00:17]} 36. Bd3 {[%clk 0:00:17]}  exd4 {[%clk 0:00:17]} 37. f4 {[%clk 0:00:17]}  Nxd3 {[%clk 0:00:15]} 38. cxd3 {[%clk 0:00:17]}  c2 {[%clk 0:00:15]} 39. Rc1 {[%clk 0:00:17]}  Rxh3 {[%clk 0:00:15]} 40. f5 {[%clk 0:00:17]}  e2 {[%clk 0:00:05]} 41. fxg6 {[%clk 0:00:16]}  fxg6 {[%clk 0:00:05]} 42. Re1 {[%clk 0:00:13]}  Re3 {[%clk 0:00:05]} 43. b4 {[%clk 0:00:14]}  g5 {[%clk 0:00:03]} 44. b5 {[%clk 0:00:14]}  axb5 {[%clk 0:00:04]} 45. Rxe2 {[%clk 0:00:09]}  Nb3+ {[%clk 0:00:04]} 46. axb3 {[%clk 0:00:08]}  Rxe2 {[%clk 0:00:05]} 47. Ka2 {[%clk 0:00:08]}  c1=Q# {[%clk 0:00:05]} 0-1


[Site "https://www.chess.com"]

[Event "Titled Tuesday Blitz December 20 Early 2022"]
[White "Kildepiotr"]
[Black "Arora, Tashika"]
[BlackFideId "459305"]
[WhiteElo "2682"]
[BlackElo "1896"]
[Result "1-0"]
[Round "10"]
[TimeControl "180+2"]
[Date "2022.12.20"]
[WhiteClock "0:00:16"]
[BlackClock "0:00:04"]

1. Nf3 {[%clk 0:03:00]}  Nf6 {[%clk 0:02:58]} 2. g3 {[%clk 0:03:01]}  d5 {[%clk 0:02:57]} 3. Bg2 {[%clk 0:03:01]}  Bf5 {[%clk 0:02:57]} 4. O-O {[%clk 0:03:02]}  e6 {[%clk 0:02:57]} 5. c4 {[%clk 0:03:02]}  c5 {[%clk 0:02:54]} 6. cxd5 {[%clk 0:03:02]}  exd5 {[%clk 0:02:49]} 7. d3 {[%clk 0:03:00]}  Be7 {[%clk 0:02:45]} 8. Qb3 {[%clk 0:02:58]}  Qc8 {[%clk 0:02:21]} 9. Nc3 {[%clk 0:02:55]}  Be6 {[%clk 0:02:15]} 10. Ng5 {[%clk 0:02:51]}  Qd7 {[%clk 0:02:04]} 11. Nxe6 {[%clk 0:02:46]}  fxe6 {[%clk 0:02:05]} 12. e4 {[%clk 0:02:44]}  dxe4 {[%clk 0:01:41]} 13. dxe4 {[%clk 0:02:45]}  Nc6 {[%clk 0:01:40]} 14. Be3 {[%clk 0:02:33]}  Ng4 {[%clk 0:01:27]} 15. Rad1 {[%clk 0:02:27]}  Nd4 {[%clk 0:01:25]} 16. Bxd4 {[%clk 0:02:26]}  cxd4 {[%clk 0:01:25]} 17. e5 {[%clk 0:02:17]}  Nxe5 {[%clk 0:01:12]} 18. Ne2 {[%clk 0:01:54]}  Bc5 {[%clk 0:01:02]} 19. Nf4 {[%clk 0:01:43]}  Bb6 {[%clk 0:00:26]} 20. Rfe1 {[%clk 0:01:40]}  Qd6 {[%clk 0:00:16]} 21. Nxe6 {[%clk 0:01:26]}  Kd7 {[%clk 0:00:09]} 22. Nxg7 {[%clk 0:00:38]}  Raf8 {[%clk 0:00:08]} 23. Bh3+ {[%clk 0:00:37]}  Kc7 {[%clk 0:00:08]} 24. Ne6+ {[%clk 0:00:37]}  Kb8 {[%clk 0:00:08]} 25. Nxf8 {[%clk 0:00:36]}  Rxf8 {[%clk 0:00:09]} 26. Bg2 {[%clk 0:00:31]}  d3 {[%clk 0:00:09]} 27. Rd2 {[%clk 0:00:29]}  Qd4 {[%clk 0:00:09]} 28. Qd5 {[%clk 0:00:26]}  Qxd5 {[%clk 0:00:06]} 29. Bxd5 {[%clk 0:00:27]}  Ng4 {[%clk 0:00:05]} 30. Kg2 {[%clk 0:00:20]}  Nxf2 {[%clk 0:00:05]} 31. Rf1 {[%clk 0:00:18]}  Rd8 {[%clk 0:00:05]} 32. Bf3 {[%clk 0:00:15]}  h5 {[%clk 0:00:05]} 33. Rfxf2 {[%clk 0:00:16]}  Bxf2 {[%clk 0:00:04]} 34. Kxf2 {[%clk 0:00:16]} 1-0


[Site "https://www.chess.com"]

[Event "Titled Tuesday Blitz December 20 Early 2022"]
[White "Kukku, Ramesh"]
[Black "lemayvega"]
[WhiteFideId "25695606"]
[WhiteElo "1575"]
[BlackElo "2529"]
[Result "1/2-1/2"]
[Round "10"]
[TimeControl "180+2"]
[Date "2022.12.20"]
[WhiteClock "0:00:08"]
[BlackClock "0:00:15"]

1. Nc3 {[%clk 0:03:00]}  d5 {[%clk 0:02:55]} 2. f4 {[%clk 0:03:00]}  c5 {[%clk 0:02:55]} 3. Nf3 {[%clk 0:02:58]}  Nc6 {[%clk 0:02:54]} 4. d3 {[%clk 0:02:55]}  g6 {[%clk 0:02:53]} 5. e4 {[%clk 0:02:54]}  e6 {[%clk 0:02:41]} 6. Be2 {[%clk 0:02:44]}  Bg7 {[%clk 0:02:40]} 7. e5 {[%clk 0:02:41]}  Nge7 {[%clk 0:02:34]} 8. O-O {[%clk 0:02:40]}  O-O {[%clk 0:02:34]} 9. Bd2 {[%clk 0:02:35]}  b6 {[%clk 0:02:34]} 10. Qe1 {[%clk 0:02:34]}  Bb7 {[%clk 0:02:33]} 11. Qh4 {[%clk 0:02:33]}  Nf5 {[%clk 0:02:32]} 12. Qxd8 {[%clk 0:02:32]}  Rfxd8 {[%clk 0:02:33]} 13. Rae1 {[%clk 0:02:28]}  Rdc8 {[%clk 0:02:24]} 14. Bd1 {[%clk 0:02:25]}  h5 {[%clk 0:02:23]} 15. h3 {[%clk 0:02:19]}  h4 {[%clk 0:02:15]} 16. Nh2 {[%clk 0:02:03]}  Bf8 {[%clk 0:01:56]} 17. Bg4 {[%clk 0:01:59]}  Ncd4 {[%clk 0:01:51]} 18. Rc1 {[%clk 0:01:55]}  Be7 {[%clk 0:01:49]} 19. Bxf5 {[%clk 0:01:49]}  Nxf5 {[%clk 0:01:47]} 20. Ne2 {[%clk 0:01:46]}  d4 {[%clk 0:01:41]} 21. Ng4 {[%clk 0:01:35]}  Kg7 {[%clk 0:01:32]} 22. Nf2 {[%clk 0:01:34]}  c4 {[%clk 0:01:32]} 23. Ne4 {[%clk 0:01:27]}  Rc7 {[%clk 0:01:25]} 24. g4 {[%clk 0:01:18]}  hxg3 {[%clk 0:01:23]} 25. N2xg3 {[%clk 0:01:17]}  Rac8 {[%clk 0:01:19]} 26. Nxf5+ {[%clk 0:01:06]}  exf5 {[%clk 0:01:17]} 27. Nd6 {[%clk 0:00:52]}  Bxd6 {[%clk 0:01:07]} 28. exd6 {[%clk 0:00:53]}  Rd7 {[%clk 0:01:08]} 29. dxc4 {[%clk 0:00:44]}  Rxc4 {[%clk 0:00:58]} 30. c3 {[%clk 0:00:41]}  d3 {[%clk 0:00:50]} 31. b3 {[%clk 0:00:37]}  Re4 {[%clk 0:00:49]} 32. c4 {[%clk 0:00:35]}  Rxd6 {[%clk 0:00:50]} 33. c5 {[%clk 0:00:24]}  bxc5 {[%clk 0:00:45]} 34. Rxc5 {[%clk 0:00:25]}  Re2 {[%clk 0:00:45]} 35. Rf2 {[%clk 0:00:25]}  Rde6 {[%clk 0:00:42]} 36. Bc3+ {[%clk 0:00:20]}  f6 {[%clk 0:00:24]} 37. Rc7+ {[%clk 0:00:20]}  Re7 {[%clk 0:00:23]} 38. Rxe7+ {[%clk 0:00:17]}  Rxe7 {[%clk 0:00:24]} 39. Rd2 {[%clk 0:00:17]}  Re3 {[%clk 0:00:23]} 40. Kh2 {[%clk 0:00:14]}  Be4 {[%clk 0:00:19]} 41. Bd4 {[%clk 0:00:14]}  Rf3 {[%clk 0:00:20]} 42. Bxa7 {[%clk 0:00:11]}  Rxf4 {[%clk 0:00:19]} 43. Bf2 {[%clk 0:00:11]}  Rf3 {[%clk 0:00:18]} 44. b4 {[%clk 0:00:11]}  g5 {[%clk 0:00:18]} 45. b5 {[%clk 0:00:12]}  f4 {[%clk 0:00:18]} 46. b6 {[%clk 0:00:11]}  f5 {[%clk 0:00:19]} 47. a4 {[%clk 0:00:11]}  g4 {[%clk 0:00:18]} 48. hxg4 {[%clk 0:00:10]}  fxg4 {[%clk 0:00:19]} 49. Bd4+ {[%clk 0:00:10]}  Kg6 {[%clk 0:00:19]} 50. a5 {[%clk 0:00:10]}  Rh3+ {[%clk 0:00:19]} 51. Kg1 {[%clk 0:00:09]}  Rh1+ {[%clk 0:00:19]} 52. Kf2 {[%clk 0:00:09]}  Rh2+ {[%clk 0:00:19]} 53. Ke1 {[%clk 0:00:09]}  Rh1+ {[%clk 0:00:19]} 54. Kf2 {[%clk 0:00:10]}  Rh2+ {[%clk 0:00:19]} 55. Ke1 {[%clk 0:00:09]}  Rh1+ {[%clk 0:00:15]} 56. Kf2 {[%clk 0:00:08]} 1/2-1/2


[Site "https://www.chess.com"]

[Event "Titled Tuesday Blitz December 20 Early 2022"]
[White "LileKoridze"]
[Black "Eloisa Navez, Angel"]
[BlackFideId "5117305"]
[WhiteElo "2345"]
[BlackElo "1942"]
[Result "1/2-1/2"]
[Round "10"]
[TimeControl "180+2"]
[Date "2022.12.20"]
[WhiteClock "0:01:45"]
[BlackClock "0:01:57"]

1. d4 {[%clk 0:03:00]}  e6 {[%clk 0:02:59]} 2. c4 {[%clk 0:03:00]}  Nf6 {[%clk 0:02:59]} 3. Nc3 {[%clk 0:03:00]}  Bb4 {[%clk 0:02:59]} 4. e3 {[%clk 0:03:01]}  O-O {[%clk 0:02:58]} 5. Bd3 {[%clk 0:03:00]}  c5 {[%clk 0:02:58]} 6. Ne2 {[%clk 0:03:00]}  d5 {[%clk 0:02:56]} 7. O-O {[%clk 0:03:00]}  Nc6 {[%clk 0:02:55]} 8. a3 {[%clk 0:02:57]}  dxc4 {[%clk 0:02:55]} 9. Bxc4 {[%clk 0:02:52]}  cxd4 {[%clk 0:02:55]} 10. exd4 {[%clk 0:02:52]}  Be7 {[%clk 0:02:54]} 11. h3 {[%clk 0:02:51]}  a6 {[%clk 0:02:53]} 12. Be3 {[%clk 0:02:50]}  b5 {[%clk 0:02:52]} 13. Bd3 {[%clk 0:02:49]}  Bb7 {[%clk 0:02:52]} 14. Rc1 {[%clk 0:02:48]}  b4 {[%clk 0:02:51]} 15. axb4 {[%clk 0:02:47]}  Nxb4 {[%clk 0:02:51]} 16. Bb1 {[%clk 0:02:48]}  Rc8 {[%clk 0:02:51]} 17. Nf4 {[%clk 0:02:45]}  Qa5 {[%clk 0:02:40]} 18. Qe2 {[%clk 0:02:36]}  Rfd8 {[%clk 0:02:39]} 19. Rfd1 {[%clk 0:02:35]}  Nbd5 {[%clk 0:02:33]} 20. Ncxd5 {[%clk 0:02:31]}  Nxd5 {[%clk 0:02:32]} 21. Qh5 {[%clk 0:02:27]}  g6 {[%clk 0:02:29]} 22. Nxg6 {[%clk 0:02:26]}  hxg6 {[%clk 0:02:07]} 23. Bxg6 {[%clk 0:02:25]}  fxg6 {[%clk 0:02:00]} 24. Qxg6+ {[%clk 0:02:25]}  Kh8 {[%clk 0:01:59]} 25. Qh6+ {[%clk 0:02:24]}  Kg8 {[%clk 0:01:58]} 26. Qxe6+ {[%clk 0:02:24]}  Kh8 {[%clk 0:01:57]} 27. Qh6+ {[%clk 0:01:45]}  Kg8 {[%clk 0:01:57]} 28. Qg6+ {[%clk 0:01:45]}  Kh8 {[%clk 0:01:57]} 29. Qh6+ {[%clk 0:01:45]}  Kg8 {[%clk 0:01:57]} 30. Qg6+ {[%clk 0:01:45]}  Kh8 {[%clk 0:01:57]} 31. Qh6+ {[%clk 0:01:45]} 1/2-1/2


[Site "https://www.chess.com"]

[Event "Titled Tuesday Blitz December 20 Early 2022"]
[White "Linhart, Wolfgang"]
[Black "Felix-Rose"]
[WhiteFideId "4636244"]
[WhiteElo "2114"]
[BlackElo "2299"]
[Result "1-0"]
[Round "10"]
[TimeControl "180+2"]
[Date "2022.12.20"]
[WhiteClock "0:00:05"]
[BlackClock "0:00:03"]

1. e4 {[%clk 0:03:00]}  e5 {[%clk 0:02:59]} 2. Nf3 {[%clk 0:03:00]}  Nc6 {[%clk 0:02:59]} 3. Bc4 {[%clk 0:03:00]}  Nf6 {[%clk 0:02:59]} 4. d3 {[%clk 0:02:59]}  Bc5 {[%clk 0:02:59]} 5. c3 {[%clk 0:02:59]}  a5 {[%clk 0:02:54]} 6. O-O {[%clk 0:02:56]}  Ba7 {[%clk 0:02:54]} 7. b4 {[%clk 0:02:48]}  d6 {[%clk 0:02:48]} 8. Qb3 {[%clk 0:02:35]}  O-O {[%clk 0:02:42]} 9. Ng5 {[%clk 0:02:34]}  Qe7 {[%clk 0:02:38]} 10. b5 {[%clk 0:02:28]}  a4 {[%clk 0:02:28]} 11. Qd1 {[%clk 0:02:05]}  Nd8 {[%clk 0:02:22]} 12. Nd2 {[%clk 0:01:45]}  c6 {[%clk 0:02:19]} 13. Ba3 {[%clk 0:01:32]}  h6 {[%clk 0:01:50]} 14. Ngf3 {[%clk 0:01:31]}  Be6 {[%clk 0:01:39]} 15. Rb1 {[%clk 0:01:22]}  Bxc4 {[%clk 0:01:38]} 16. Nxc4 {[%clk 0:01:22]}  c5 {[%clk 0:01:01]} 17. Ne3 {[%clk 0:01:20]}  g6 {[%clk 0:00:57]} 18. Bc1 {[%clk 0:01:11]}  Bb6 {[%clk 0:00:54]} 19. Nc4 {[%clk 0:01:10]}  Ba5 {[%clk 0:00:43]} 20. Bxh6 {[%clk 0:01:08]}  Re8 {[%clk 0:00:38]} 21. Qc1 {[%clk 0:01:06]}  Ne6 {[%clk 0:00:36]} 22. Bg5 {[%clk 0:00:42]}  Nxg5 {[%clk 0:00:36]} 23. Nxg5 {[%clk 0:00:37]}  d5 {[%clk 0:00:33]} 24. Nxa5 {[%clk 0:00:33]}  Rxa5 {[%clk 0:00:34]} 25. f4 {[%clk 0:00:30]}  dxe4 {[%clk 0:00:31]} 26. dxe4 {[%clk 0:00:27]}  c4 {[%clk 0:00:26]} 27. Qe3 {[%clk 0:00:25]}  exf4 {[%clk 0:00:12]} 28. Qxf4 {[%clk 0:00:21]}  Nxe4 {[%clk 0:00:04]} 29. Nxe4 {[%clk 0:00:17]}  Qxe4 {[%clk 0:00:04]} 30. Qxf7+ {[%clk 0:00:17]}  Kh8 {[%clk 0:00:05]} 31. Qf6+ {[%clk 0:00:16]}  Kh7 {[%clk 0:00:05]} 32. Kh1 {[%clk 0:00:11]}  Re7 {[%clk 0:00:02]} 33. Rbd1 {[%clk 0:00:10]}  Rxb5 {[%clk 0:00:02]} 34. Rd4 {[%clk 0:00:06]}  Rf5 {[%clk 0:00:03]} 35. Rxe4 {[%clk 0:00:05]}  Rxf6 {[%clk 0:00:02]} 36. Rxe7+ {[%clk 0:00:05]}  Kh6 {[%clk 0:00:03]} 37. Rxf6 {[%clk 0:00:05]}  a3 {[%clk 0:00:03]} 38. Re5 {[%clk 0:00:05]} 1-0


[Site "https://www.chess.com"]